[Event "Late-Titled-Tuesday-Blitz-April-02-2024"]
[Site "Chess.com"]
[Date "2024.04.02"]
[Round "1"]
[White "Carlitus2004"]
[Black "Yaacovn"]
[Result "0-1"]
[WhiteElo "2473"]
[BlackElo "2854"]
[TimeControl "180+1"]
[EndTime "14:07:26 PDT"]
[Termination "Yaacovn won on time"]

1. e4 {[%clk 0:02:59.9]} 1... c6 {[%clk 0:03:00]} 2. Nf3 {[%clk 0:02:57]} 2...
d5 {[%clk 0:03:00]} 3. d3 {[%clk 0:02:54]} 3... Bg4 {[%clk 0:02:58.1]} 4. Nbd2
{[%clk 0:02:45.6]} 4... g6 {[%clk 0:02:47.2]} 5. h3 {[%clk 0:02:45.2]} 5... Bxf3
{[%clk 0:02:47.1]} 6. Nxf3 {[%clk 0:02:46.1]} 6... Bg7 {[%clk 0:02:47.2]} 7. e5
{[%clk 0:02:43.3]} 7... e6 {[%clk 0:02:46.5]} 8. d4 {[%clk 0:02:43.6]} 8... c5
{[%clk 0:02:46.2]} 9. c3 {[%clk 0:02:43.8]} 9... cxd4 {[%clk 0:02:45.4]} 10.
cxd4 {[%clk 0:02:43.8]} 10... Ne7 {[%clk 0:02:45.9]} 11. Bb5+ {[%clk 0:02:38]}
11... Nbc6 {[%clk 0:02:45.5]} 12. O-O {[%clk 0:02:38.6]} 12... O-O {[%clk
0:02:45.3]} 13. Bg5 {[%clk 0:02:37.4]} 13... h6 {[%clk 0:02:44.5]} 14. Bf4
{[%clk 0:02:31.7]} 14... Qb6 {[%clk 0:02:43.5]} 15. Qa4 {[%clk 0:02:12.6]} 15...
a6 {[%clk 0:02:32.6]} 16. Bxc6 {[%clk 0:02:12.5]} 16... Nxc6 {[%clk 0:02:33.5]}
17. Rfc1 {[%clk 0:02:08]} 17... Rfc8 {[%clk 0:02:31]} 18. Be3 {[%clk 0:02:07.6]}
18... Qb5 {[%clk 0:02:30]} 19. Qxb5 {[%clk 0:01:55.1]} 19... axb5 {[%clk
0:02:30.9]} 20. a3 {[%clk 0:01:54]} 20... Bf8 {[%clk 0:02:30]} 21. Nd2 {[%clk
0:01:46.9]} 21... Na5 {[%clk 0:02:27.2]} 22. Kf1 {[%clk 0:01:43.2]} 22... Nc4
{[%clk 0:02:01.6]} 23. Nxc4 {[%clk 0:01:42.3]} 23... bxc4 {[%clk 0:02:02.5]} 24.
Ke1 {[%clk 0:01:41.4]} 24... b5 {[%clk 0:02:02]} 25. Bd2 {[%clk 0:01:41.5]}
25... Ra4 {[%clk 0:02:02]} 26. Kd1 {[%clk 0:01:36.8]} 26... Rca8 {[%clk
0:02:01.2]} 27. Rab1 {[%clk 0:01:36.7]} 27... Kg7 {[%clk 0:01:59.5]} 28. Bc3
{[%clk 0:01:35.1]} 28... Be7 {[%clk 0:01:58.7]} 29. f4 {[%clk 0:01:34.1]} 29...
h5 {[%clk 0:01:58.6]} 30. g3 {[%clk 0:01:33.2]} 30... Kh6 {[%clk 0:01:55.9]} 31.
g4 {[%clk 0:01:32]} 31... hxg4 {[%clk 0:01:55.8]} 32. hxg4 {[%clk 0:01:32.9]}
32... Kg7 {[%clk 0:01:55.7]} 33. Kc2 {[%clk 0:01:28.6]} 33... Rh8 {[%clk
0:01:55.3]} 34. Rh1 {[%clk 0:01:29.3]} 34... Raa8 {[%clk 0:01:54.6]} 35. Kd2
{[%clk 0:01:24.2]} 35... Rxh1 {[%clk 0:01:48.2]} 36. Rxh1 {[%clk 0:01:25.1]}
36... Rb8 {[%clk 0:01:47.7]} 37. Kc2 {[%clk 0:01:21.1]} 37... Ra8 {[%clk
0:01:44.7]} 38. Rh3 {[%clk 0:01:15.8]} 38... f6 {[%clk 0:01:39.4]} 39. Rh1
{[%clk 0:00:49.1]} 39... fxe5 {[%clk 0:01:37.1]} 40. dxe5 {[%clk 0:00:49.8]}
40... Rf8 {[%clk 0:01:35.8]} 41. Bd2 {[%clk 0:00:45.7]} 41... d4 {[%clk
0:01:32.6]} 42. Rf1 {[%clk 0:00:39.2]} 42... Bd8 {[%clk 0:01:30.1]} 43. Bb4
{[%clk 0:00:32.7]} 43... Rf7 {[%clk 0:01:29.8]} 44. Bc5 {[%clk 0:00:33.3]} 44...
d3+ {[%clk 0:01:28.9]} 45. Kc3 {[%clk 0:00:33.9]} 45... Ba5+ {[%clk 0:01:29.1]}
46. Bb4 {[%clk 0:00:34.2]} 46... Bc7 {[%clk 0:01:28.2]} 47. Kd4 {[%clk
0:00:31.6]} 47... Rd7+ {[%clk 0:01:27.5]} 48. Ke4 {[%clk 0:00:31.6]} 48... Rd5
{[%clk 0:01:20.2]} 49. Bc3 {[%clk 0:00:27.7]} 49... Rd8 {[%clk 0:01:18.7]} 50.
f5 {[%clk 0:00:24.9]} 50... gxf5+ {[%clk 0:01:16.6]} 51. gxf5 {[%clk 0:00:25.8]}
51... Rf8 {[%clk 0:01:12.7]} 52. Rg1+ {[%clk 0:00:19.7]} 52... Kf7 {[%clk
0:01:12.5]} 53. fxe6+ {[%clk 0:00:18.6]} 53... Kxe6 {[%clk 0:01:12.5]} 54. Rg6+
{[%clk 0:00:19.1]} 54... Kd7 {[%clk 0:01:12.5]} 55. e6+ {[%clk 0:00:17]} 55...
Kc8 {[%clk 0:01:10.1]} 56. Bb4 {[%clk 0:00:13.7]} 56... Rd8 {[%clk 0:01:04.1]}
57. Rg2 {[%clk 0:00:12.8]} 57... Bd6 {[%clk 0:01:01.8]} 58. Bxd6 {[%clk
0:00:11.5]} 58... Rxd6 {[%clk 0:01:02.7]} 59. Ke5 {[%clk 0:00:12.4]} 59... d2
{[%clk 0:01:01.8]} 60. e7 {[%clk 0:00:11.6]} 60... Kd7 {[%clk 0:00:55.3]} 0-1

[Event "Late-Titled-Tuesday-Blitz-April-02-2024"]
[Site "Chess.com"]
[Date "2024.04.02"]
[Round "1"]
[White "giovannibrandao7"]
[Black "Nathan_Filgueiras"]
[Result "0-1"]
[WhiteElo "2159"]
[BlackElo "2567"]
[TimeControl "180+1"]
[EndTime "14:07:31 PDT"]
[Termination "Nathan_Filgueiras won by resignation"]

1. e4 {[%clk 0:02:45.6]} 1... c5 {[%clk 0:03:00.2]} 2. Nf3 {[%clk 0:02:45.6]}
2... Nc6 {[%clk 0:03:00.9]} 3. Bb5 {[%clk 0:02:45.6]} 3... e5 {[%clk 0:03:01.5]}
4. O-O {[%clk 0:02:45.8]} 4... Bd6 {[%clk 0:03:01.3]} 5. Re1 {[%clk 0:02:45.9]}
5... Nge7 {[%clk 0:03:00]} 6. c3 {[%clk 0:02:46.2]} 6... a6 {[%clk 0:02:59.5]}
7. Bxc6 {[%clk 0:02:41.6]} 7... dxc6 {[%clk 0:02:51.2]} 8. d4 {[%clk 0:02:42.1]}
8... exd4 {[%clk 0:02:51.4]} 9. cxd4 {[%clk 0:02:42.6]} 9... Bg4 {[%clk
0:02:51.8]} 10. d5 {[%clk 0:02:13.2]} 10... cxd5 {[%clk 0:02:46.7]} 11. exd5
{[%clk 0:02:11.8]} 11... O-O {[%clk 0:02:26.1]} 12. Nc3 {[%clk 0:02:08.8]} 12...
b5 {[%clk 0:02:17]} 13. h3 {[%clk 0:01:54]} 13... Bh5 {[%clk 0:02:15.5]} 14. Ne4
{[%clk 0:01:36.8]} 14... Nxd5 {[%clk 0:02:04.6]} 15. Nxd6 {[%clk 0:01:20.9]}
15... Qxd6 {[%clk 0:02:04.1]} 16. Be3 {[%clk 0:00:58.2]} 16... Rad8 {[%clk
0:01:48.5]} 17. Rc1 {[%clk 0:00:54.4]} 17... Nxe3 {[%clk 0:01:34.8]} 18. Qxd6
{[%clk 0:00:54.1]} 18... Rxd6 {[%clk 0:01:35.7]} 19. Rxe3 {[%clk 0:00:53.6]}
19... c4 {[%clk 0:01:33.8]} 20. g4 {[%clk 0:00:49.6]} 20... Bg6 {[%clk
0:01:33.2]} 21. Ne5 {[%clk 0:00:49.7]} 21... Rfd8 {[%clk 0:01:29.7]} 22. b3
{[%clk 0:00:39]} 22... cxb3 {[%clk 0:01:25.8]} 23. axb3 {[%clk 0:00:38.5]} 23...
Rd1+ {[%clk 0:00:56.5]} 24. Rxd1 {[%clk 0:00:37.3]} 24... Rxd1+ {[%clk
0:00:57.4]} 25. Kg2 {[%clk 0:00:34.5]} 25... f6 {[%clk 0:00:57.6]} 26. Nxg6
{[%clk 0:00:23]} 26... hxg6 {[%clk 0:00:58.5]} 27. Re6 {[%clk 0:00:23.3]} 27...
Ra1 {[%clk 0:00:54.4]} 28. Rb6 {[%clk 0:00:23.2]} 28... Ra3 {[%clk 0:00:51.3]}
29. b4 {[%clk 0:00:23]} 29... g5 {[%clk 0:00:50]} 30. Rb7 {[%clk 0:00:17.6]}
30... Kh7 {[%clk 0:00:47.9]} 31. Ra7 {[%clk 0:00:14.5]} 31... Kg6 {[%clk
0:00:47.6]} 32. f3 {[%clk 0:00:12.8]} 32... Ra4 {[%clk 0:00:35.4]} 33. Kg3
{[%clk 0:00:11.9]} 33... Rxb4 {[%clk 0:00:28]} 34. Rxa6 {[%clk 0:00:11.7]} 34...
Rb1 {[%clk 0:00:28.1]} 35. Rb6 {[%clk 0:00:11.7]} 35... b4 {[%clk 0:00:28.5]}
36. h4 {[%clk 0:00:12]} 36... gxh4+ {[%clk 0:00:26.5]} 37. Kxh4 {[%clk
0:00:12.9]} 37... b3 {[%clk 0:00:27.1]} 38. Kg3 {[%clk 0:00:13.4]} 38... Kf7
{[%clk 0:00:25.7]} 39. Kf2 {[%clk 0:00:12.6]} 39... Ke7 {[%clk 0:00:23.2]} 40.
Rb7+ {[%clk 0:00:09.7]} 40... Kd6 {[%clk 0:00:22.9]} 41. Rxg7 {[%clk 0:00:06.6]}
41... b2 {[%clk 0:00:23.3]} 42. Rb7 {[%clk 0:00:06.5]} 42... Rh1 {[%clk
0:00:23.2]} 43. Kg3 {[%clk 0:00:02]} 43... b1=Q {[%clk 0:00:22]} 0-1

[Event "Late-Titled-Tuesday-Blitz-April-02-2024"]
[Site "Chess.com"]
[Date "2024.04.02"]
[Round "1"]
[White "Flaccidmoves"]
[Black "aa175"]
[Result "0-1"]
[WhiteElo "2420"]
[BlackElo "2751"]
[TimeControl "180+1"]
[EndTime "14:07:34 PDT"]
[Termination "aa175 won on time"]

1. Nf3 {[%clk 0:02:59.2]} 1... d5 {[%clk 0:02:56]} 2. c4 {[%clk 0:02:58.8]} 2...
c6 {[%clk 0:02:56.1]} 3. e3 {[%clk 0:02:56.8]} 3... Nf6 {[%clk 0:02:55.9]} 4.
Nc3 {[%clk 0:02:56.3]} 4... a6 {[%clk 0:02:54.4]} 5. b3 {[%clk 0:02:47.8]} 5...
Bf5 {[%clk 0:02:51.3]} 6. d4 {[%clk 0:02:42.4]} 6... e6 {[%clk 0:02:51.1]} 7.
Nh4 {[%clk 0:02:33.6]} 7... Bb4 {[%clk 0:02:48.5]} 8. Bd2 {[%clk 0:02:32.2]}
8... Bxc3 {[%clk 0:02:43.4]} 9. Bxc3 {[%clk 0:02:33.1]} 9... Ne4 {[%clk
0:02:43.5]} 10. Nxf5 {[%clk 0:02:33.1]} 10... Nxc3 {[%clk 0:02:43.7]} 11. Qc2
{[%clk 0:02:33.2]} 11... Ne4 {[%clk 0:02:40.2]} 12. Ng3 {[%clk 0:02:28.5]} 12...
Qa5+ {[%clk 0:02:37.3]} 13. Ke2 {[%clk 0:02:20.8]} 13... Nf6 {[%clk 0:02:32.7]}
14. f3 {[%clk 0:02:18.8]} 14... Nbd7 {[%clk 0:02:32.8]} 15. Kf2 {[%clk
0:02:11.5]} 15... h5 {[%clk 0:02:31.1]} 16. h4 {[%clk 0:01:58.5]} 16... b5
{[%clk 0:02:24.9]} 17. cxd5 {[%clk 0:01:47.4]} 17... Nxd5 {[%clk 0:02:21.2]} 18.
Ne4 {[%clk 0:01:35.4]} 18... Qc7 {[%clk 0:02:10.6]} 19. Rc1 {[%clk 0:01:33.3]}
19... Rc8 {[%clk 0:02:09.4]} 20. Ng5 {[%clk 0:01:28.9]} 20... N7f6 {[%clk
0:02:05.7]} 21. a4 {[%clk 0:01:18.4]} 21... O-O {[%clk 0:01:56.8]} 22. axb5
{[%clk 0:01:16]} 22... axb5 {[%clk 0:01:56.7]} 23. e4 {[%clk 0:00:56.5]} 23...
Qf4 {[%clk 0:01:47.5]} 24. exd5 {[%clk 0:00:51]} 24... Qxd4+ {[%clk 0:01:43.1]}
25. Kg3 {[%clk 0:00:38.7]} 25... Qe5+ {[%clk 0:01:41.7]} 26. Kh3 {[%clk
0:00:33.4]} 26... exd5 {[%clk 0:01:29.4]} 27. Bxb5 {[%clk 0:00:24.2]} 27... cxb5
{[%clk 0:01:16.8]} 28. Qxc8 {[%clk 0:00:23.9]} 28... Rxc8 {[%clk 0:01:17.7]} 29.
Rxc8+ {[%clk 0:00:23.8]} 29... Ne8 {[%clk 0:01:18.4]} 30. Rhc1 {[%clk
0:00:18.3]} 30... g6 {[%clk 0:01:09.3]} 31. f4 {[%clk 0:00:16.7]} 31... Qf5+
{[%clk 0:01:07.2]} 32. Kh2 {[%clk 0:00:16.7]} 32... Qxf4+ {[%clk 0:01:07.2]} 33.
Kh1 {[%clk 0:00:16.8]} 33... Qxh4+ {[%clk 0:01:07.1]} 34. Kg1 {[%clk 0:00:16.7]}
34... Qd4+ {[%clk 0:01:06.1]} 35. Kh1 {[%clk 0:00:15.5]} 35... Qh4+ {[%clk
0:01:06.3]} 36. Kg1 {[%clk 0:00:15.6]} 36... Qxg5 {[%clk 0:01:05.6]} 37. Rxe8+
{[%clk 0:00:16]} 37... Kg7 {[%clk 0:01:05.9]} 38. Rcc8 {[%clk 0:00:16.5]} 38...
b4 {[%clk 0:01:04.7]} 39. Red8 {[%clk 0:00:15]} 39... h4 {[%clk 0:01:04.1]} 40.
Kf2 {[%clk 0:00:13.2]} 40... Qf4+ {[%clk 0:01:03]} 41. Ke1 {[%clk 0:00:12.6]}
41... Qe3+ {[%clk 0:01:03]} 42. Kf1 {[%clk 0:00:12.7]} 42... Qd3+ {[%clk
0:01:03.1]} 43. Kg1 {[%clk 0:00:12.9]} 43... Qxb3 {[%clk 0:01:03.2]} 44. Rg8+
{[%clk 0:00:11.2]} 44... Kf6 {[%clk 0:01:02]} 45. Rc6+ {[%clk 0:00:11.7]} 45...
Kg5 {[%clk 0:01:02.3]} 46. Re8 {[%clk 0:00:09.8]} 46... Qd1+ {[%clk 0:01:00.6]}
47. Kh2 {[%clk 0:00:09.5]} 47... f5 {[%clk 0:01:01]} 48. Ree6 {[%clk 0:00:08.3]}
48... Qh5 {[%clk 0:01:00.4]} 49. Rcd6 {[%clk 0:00:08.2]} 49... b3 {[%clk
0:01:00.2]} 50. Rb6 {[%clk 0:00:08.3]} 50... h3 {[%clk 0:00:59.3]} 51. gxh3
{[%clk 0:00:08]} 51... Qd1 {[%clk 0:00:53.7]} 52. Rxg6+ {[%clk 0:00:08]} 52...
Kf4 {[%clk 0:00:52.6]} 53. Rge6 {[%clk 0:00:07.6]} 53... d4 {[%clk 0:00:51.8]}
54. Red6 {[%clk 0:00:07.3]} 54... Kf3 {[%clk 0:00:50.8]} 55. Rg6 {[%clk
0:00:05]} 55... f4 {[%clk 0:00:49.5]} 56. Rg2 {[%clk 0:00:04.4]} 56... d3 {[%clk
0:00:48.5]} 57. Ra6 {[%clk 0:00:01.5]} 57... Qf1 {[%clk 0:00:37.1]} 0-1

[Event "Late-Titled-Tuesday-Blitz-April-02-2024"]
[Site "Chess.com"]
[Date "2024.04.02"]
[Round "1"]
[White "Gabcur"]
[Black "Koksal06"]
[Result "0-1"]
[WhiteElo "2326"]
[BlackElo "2636"]
[TimeControl "180+1"]
[EndTime "14:07:37 PDT"]
[Termination "Koksal06 won by resignation"]

1. d4 {[%clk 0:03:00.9]} 1... Nf6 {[%clk 0:02:58.7]} 2. c4 {[%clk 0:03:01]} 2...
e6 {[%clk 0:02:59.1]} 3. Nc3 {[%clk 0:03:01]} 3... Bb4 {[%clk 0:02:59]} 4. f3
{[%clk 0:03:01.5]} 4... O-O {[%clk 0:02:55.6]} 5. e4 {[%clk 0:02:58.9]} 5... c5
{[%clk 0:02:56.2]} 6. a3 {[%clk 0:02:55.7]} 6... Bxc3+ {[%clk 0:02:55.7]} 7.
bxc3 {[%clk 0:02:56]} 7... d6 {[%clk 0:02:55.9]} 8. Bd3 {[%clk 0:02:49.6]} 8...
Nc6 {[%clk 0:02:52.1]} 9. Ne2 {[%clk 0:02:49.3]} 9... b6 {[%clk 0:02:51.8]} 10.
O-O {[%clk 0:02:47.6]} 10... Ba6 {[%clk 0:02:51.9]} 11. f4 {[%clk 0:02:33.8]}
11... Na5 {[%clk 0:02:40.4]} 12. e5 {[%clk 0:02:31]} 12... Ne8 {[%clk
0:02:40.5]} 13. f5 {[%clk 0:02:15]} 13... exf5 {[%clk 0:02:40.2]} 14. Ng3 {[%clk
0:02:07.6]} 14... Bxc4 {[%clk 0:02:23.7]} 15. Nxf5 {[%clk 0:01:55.5]} 15... Bxd3
{[%clk 0:02:23.7]} 16. Qxd3 {[%clk 0:01:55.5]} 16... dxe5 {[%clk 0:02:24]} 17.
d5 {[%clk 0:01:28.7]} 17... Nb3 {[%clk 0:02:12.6]} 18. Ra2 {[%clk 0:01:21.6]}
18... Nxc1 {[%clk 0:02:12.4]} 19. Rxc1 {[%clk 0:01:21.5]} 19... Nd6 {[%clk
0:02:07.7]} 20. c4 {[%clk 0:01:12.6]} 20... g6 {[%clk 0:02:01]} 21. Nxd6 {[%clk
0:01:00.9]} 21... Qxd6 {[%clk 0:02:00.7]} 22. a4 {[%clk 0:01:01.8]} 22... a5
{[%clk 0:01:38.5]} 23. Rb2 {[%clk 0:00:58.2]} 23... f5 {[%clk 0:01:38.6]} 24.
Rcb1 {[%clk 0:00:56.9]} 24... Rab8 {[%clk 0:01:39]} 25. Qg3 {[%clk 0:00:54]}
25... Qf6 {[%clk 0:01:28.2]} 26. h4 {[%clk 0:00:49.3]} 26... e4 {[%clk
0:01:24.6]} 27. Qc7 {[%clk 0:00:45.1]} 27... Qd4+ {[%clk 0:01:02.5]} 28. Kh1
{[%clk 0:00:33.7]} 28... e3 {[%clk 0:01:02.5]} 29. Rxb6 {[%clk 0:00:20]} 29...
Qxh4+ {[%clk 0:01:02]} 30. Kg1 {[%clk 0:00:19.3]} 30... Rxb6 {[%clk 0:00:44.3]}
31. Qxb6 {[%clk 0:00:17.5]} 31... Qe4 {[%clk 0:00:24.4]} 32. Qe6+ {[%clk
0:00:14.6]} 32... Qxe6 {[%clk 0:00:24.2]} 33. dxe6 {[%clk 0:00:15.1]} 33... Re8
{[%clk 0:00:22.6]} 34. Kf1 {[%clk 0:00:14.9]} 34... Rxe6 {[%clk 0:00:22.3]} 35.
Ke2 {[%clk 0:00:14.7]} 35... Re4 {[%clk 0:00:22.5]} 36. Rb5 {[%clk 0:00:15.1]}
36... Rxc4 {[%clk 0:00:22.3]} 37. Rxa5 {[%clk 0:00:15.4]} 37... f4 {[%clk
0:00:22.8]} 38. Ra7 {[%clk 0:00:13.4]} 38... Rc2+ {[%clk 0:00:16.2]} 39. Kf1
{[%clk 0:00:10.7]} 39... g5 {[%clk 0:00:12.9]} 40. a5 {[%clk 0:00:11]} 40... g4
{[%clk 0:00:13.4]} 41. a6 {[%clk 0:00:11.4]} 41... f3 {[%clk 0:00:14]} 42. gxf3
{[%clk 0:00:10.8]} 42... gxf3 {[%clk 0:00:14.9]} 43. Kg1 {[%clk 0:00:10.2]}
43... Rc1+ {[%clk 0:00:13.5]} 44. Kh2 {[%clk 0:00:10.2]} 44... e2 {[%clk
0:00:14.2]} 0-1

[Event "Late-Titled-Tuesday-Blitz-April-02-2024"]
[Site "Chess.com"]
[Date "2024.04.02"]
[Round "1"]
[White "NovakRatko"]
[Black "Mops_2004"]
[Result "0-1"]
[WhiteElo "2446"]
[BlackElo "2795"]
[TimeControl "180+1"]
[EndTime "14:07:39 PDT"]
[Termination "Mops_2004 won on time"]

1. c4 {[%clk 0:02:46.9]} 1... g6 {[%clk 0:03:00.2]} 2. d4 {[%clk 0:02:46.6]}
2... Bg7 {[%clk 0:03:00.2]} 3. Nc3 {[%clk 0:02:41.3]} 3... d6 {[%clk 0:03:00.5]}
4. e4 {[%clk 0:02:39.4]} 4... e5 {[%clk 0:03:00.3]} 5. d5 {[%clk 0:02:35.8]}
5... a5 {[%clk 0:03:00.1]} 6. f4 {[%clk 0:02:35.7]} 6... Na6 {[%clk 0:02:27.4]}
7. fxe5 {[%clk 0:02:30.7]} 7... Bxe5 {[%clk 0:02:26.4]} 8. Nf3 {[%clk
0:02:30.7]} 8... Bg4 {[%clk 0:02:26]} 9. Be2 {[%clk 0:02:25.6]} 9... Bxf3 {[%clk
0:02:25.4]} 10. Bxf3 {[%clk 0:02:26.5]} 10... Nf6 {[%clk 0:02:13.6]} 11. Bh6
{[%clk 0:02:19.7]} 11... Ng4 {[%clk 0:02:11.8]} 12. Bd2 {[%clk 0:02:12.3]} 12...
Nxh2 {[%clk 0:02:08.1]} 13. Qa4+ {[%clk 0:02:07]} 13... Qd7 {[%clk 0:01:50.3]}
14. Qxa5 {[%clk 0:02:02.8]} 14... O-O {[%clk 0:01:38]} 15. Qb5 {[%clk 0:02:02]}
15... c6 {[%clk 0:01:30.6]} 16. Qb3 {[%clk 0:01:51.4]} 16... Bg3+ {[%clk
0:01:19.9]} 17. Ke2 {[%clk 0:01:49.7]} 17... Ng4 {[%clk 0:01:16.4]} 18. Rh3
{[%clk 0:01:36.2]} 18... Be5 {[%clk 0:01:11.7]} 19. Rah1 {[%clk 0:01:35]} 19...
h5 {[%clk 0:01:10.4]} 20. a3 {[%clk 0:01:13.5]} 20... Rac8 {[%clk 0:01:06.6]}
21. Rxh5 {[%clk 0:01:06.7]} 21... gxh5 {[%clk 0:01:05.8]} 22. Rxh5 {[%clk
0:01:06.4]} 22... Nf6 {[%clk 0:00:53]} 23. Rg5+ {[%clk 0:01:05.1]} 23... Kh8
{[%clk 0:00:53.3]} 24. Qd1 {[%clk 0:01:04.2]} 24... Nh7 {[%clk 0:00:50.7]} 25.
Qh1 {[%clk 0:01:02.1]} 25... f6 {[%clk 0:00:39.3]} 26. Bg4 {[%clk 0:00:59.4]}
26... Qe7 {[%clk 0:00:35.4]} 27. Rh5 {[%clk 0:00:57.3]} 27... Rc7 {[%clk
0:00:29.4]} 28. Bf5 {[%clk 0:00:54]} 28... Rf7 {[%clk 0:00:29.2]} 29. b4 {[%clk
0:00:32.2]} 29... Nb8 {[%clk 0:00:26.5]} 30. Nd1 {[%clk 0:00:26.7]} 30... cxd5
{[%clk 0:00:26]} 31. exd5 {[%clk 0:00:21.2]} 31... Bf4+ {[%clk 0:00:18]} 32. Kd3
{[%clk 0:00:17.3]} 32... Bxd2 {[%clk 0:00:17]} 33. Kxd2 {[%clk 0:00:17.5]} 33...
Nd7 {[%clk 0:00:16.4]} 34. Be6 {[%clk 0:00:17.3]} 34... Rg7 {[%clk 0:00:15.4]}
35. Ne3 {[%clk 0:00:17.5]} 35... Ne5 {[%clk 0:00:14.6]} 36. Nf5 {[%clk
0:00:16.3]} 36... Nxc4+ {[%clk 0:00:14.8]} 37. Ke2 {[%clk 0:00:13.2]} 37... Qf8
{[%clk 0:00:14.1]} 38. Nxg7 {[%clk 0:00:13]} 38... Rxg7 {[%clk 0:00:14.9]} 39.
Bf5 {[%clk 0:00:12.9]} 39... Qe7+ {[%clk 0:00:14.5]} 40. Kd1 {[%clk 0:00:10.3]}
40... Ne3+ {[%clk 0:00:14.3]} 41. Kd2 {[%clk 0:00:10.4]} 41... Nxf5 {[%clk
0:00:14.1]} 42. Rxf5 {[%clk 0:00:11]} 42... Qe4 {[%clk 0:00:13.9]} 43. Rf2
{[%clk 0:00:07.7]} 43... Qxd5+ {[%clk 0:00:13.9]} 44. Ke2 {[%clk 0:00:08.2]}
44... Re7+ {[%clk 0:00:14.1]} 0-1

[Event "Late-Titled-Tuesday-Blitz-April-02-2024"]
[Site "Chess.com"]
[Date "2024.04.02"]
[Round "1"]
[White "Caracal3000"]
[Black "sillypiggy2024"]
[Result "0-1"]
[WhiteElo "2531"]
[BlackElo "1749"]
[TimeControl "180+1"]
[EndTime "14:07:40 PDT"]
[Termination "sillypiggy2024 won by checkmate"]

1. e4 {[%clk 0:02:54.3]} 1... c6 {[%clk 0:02:59.8]} 2. d4 {[%clk 0:02:52.1]}
2... d5 {[%clk 0:03:00.4]} 3. Nc3 {[%clk 0:02:53]} 3... dxe4 {[%clk 0:03:00.3]}
4. Nxe4 {[%clk 0:02:52.5]} 4... Bf5 {[%clk 0:03:00.9]} 5. Ng3 {[%clk 0:02:51]}
5... Bg6 {[%clk 0:03:01.4]} 6. h4 {[%clk 0:02:50.6]} 6... h6 {[%clk 0:03:00.9]}
7. f4 {[%clk 0:02:49.8]} 7... e6 {[%clk 0:02:56.2]} 8. Nf3 {[%clk 0:02:45.4]}
8... Nd7 {[%clk 0:02:55.3]} 9. h5 {[%clk 0:02:43.2]} 9... Bh7 {[%clk 0:02:54.8]}
10. Bd3 {[%clk 0:02:43.8]} 10... Bxd3 {[%clk 0:02:54.1]} 11. Qxd3 {[%clk
0:02:44.7]} 11... Ngf6 {[%clk 0:02:52.9]} 12. Bd2 {[%clk 0:02:42.7]} 12... Bd6
{[%clk 0:02:50.6]} 13. O-O-O {[%clk 0:02:42.8]} 13... Qc7 {[%clk 0:02:43.4]} 14.
Ne5 {[%clk 0:02:40.6]} 14... O-O {[%clk 0:02:03.4]} 15. Ne4 {[%clk 0:02:30.2]}
15... Nxe4 {[%clk 0:01:59.9]} 16. Qxe4 {[%clk 0:02:31.1]} 16... Nf6 {[%clk
0:01:56.2]} 17. Qf3 {[%clk 0:02:30.7]} 17... c5 {[%clk 0:01:50.1]} 18. dxc5
{[%clk 0:02:10.6]} 18... Qxc5 {[%clk 0:01:28.3]} 19. Bc3 {[%clk 0:02:10.9]}
19... b5 {[%clk 0:01:16.5]} 20. g4 {[%clk 0:02:07.5]} 20... Rac8 {[%clk
0:01:05.4]} 21. Rh2 {[%clk 0:01:44.6]} 21... Nd5 {[%clk 0:00:53.3]} 22. Nd7
{[%clk 0:01:37.8]} 22... Bxf4+ {[%clk 0:00:35.1]} 23. Kb1 {[%clk 0:00:51.2]}
23... Qd6 {[%clk 0:00:18.9]} 24. Rf2 {[%clk 0:00:33.9]} 24... Qxd7 {[%clk
0:00:16.2]} 25. Qxf4 {[%clk 0:00:34.5]} 25... Nxc3+ {[%clk 0:00:11.4]} 26. bxc3
{[%clk 0:00:35]} 26... Qxd1+ {[%clk 0:00:10.5]} 27. Kb2 {[%clk 0:00:35.8]} 27...
Qd5 {[%clk 0:00:08.5]} 28. g5 {[%clk 0:00:34.6]} 28... Qxg5 {[%clk 0:00:06.7]}
29. Qf3 {[%clk 0:00:34.2]} 29... Qc5 {[%clk 0:00:06.6]} 30. Rg2 {[%clk
0:00:34.4]} 30... Kh7 {[%clk 0:00:04.6]} 31. Qg3 {[%clk 0:00:34.8]} 31... Rg8
{[%clk 0:00:04.4]} 32. Qd3+ {[%clk 0:00:35.2]} 32... Kh8 {[%clk 0:00:04.3]} 33.
Qd7 {[%clk 0:00:35.8]} 33... Qxc3+ {[%clk 0:00:03.4]} 34. Kb1 {[%clk 0:00:36.5]}
34... Qb4+ {[%clk 0:00:03.1]} 35. Kc1 {[%clk 0:00:36]} 35... Qe1+ {[%clk
0:00:03.1]} 36. Kb2 {[%clk 0:00:36.7]} 36... Qb4+ {[%clk 0:00:02.1]} 37. Kc1
{[%clk 0:00:36.4]} 37... a5 {[%clk 0:00:02.5]} 38. Qd1 {[%clk 0:00:37.3]} 38...
Qa3+ {[%clk 0:00:01.7]} 39. Kb1 {[%clk 0:00:37.5]} 39... Rc3 {[%clk 0:00:01.8]}
40. Qc1 {[%clk 0:00:37.3]} 40... Qxc1+ {[%clk 0:00:01.1]} 41. Kxc1 {[%clk
0:00:38.2]} 41... Rc6 {[%clk 0:00:01.2]} 42. Rxg7 {[%clk 0:00:38.6]} 42... Rgc8
{[%clk 0:00:01.5]} 43. Rg8+ {[%clk 0:00:39.5]} 43... Kxg8 {[%clk 0:00:01.4]} 44.
Kd2 {[%clk 0:00:40]} 44... Kf8 {[%clk 0:00:02.3]} 45. Kd3 {[%clk 0:00:40.6]}
45... Ke7 {[%clk 0:00:03.2]} 46. Ke3 {[%clk 0:00:41.5]} 46... Rd6 {[%clk
0:00:03.6]} 47. c4 {[%clk 0:00:42.4]} 47... Rdc6 {[%clk 0:00:04.1]} 48. cxb5
{[%clk 0:00:43.3]} 48... Rb6 {[%clk 0:00:04.4]} 49. a4 {[%clk 0:00:43.3]} 49...
Rc5 {[%clk 0:00:04.1]} 50. Kd4 {[%clk 0:00:43.8]} 50... Rcxb5 {[%clk 0:00:04.3]}
51. Kc4 {[%clk 0:00:44.7]} 51... Rb4+ {[%clk 0:00:04.2]} 52. Kc5 {[%clk
0:00:45.2]} 52... Rxa4 {[%clk 0:00:05]} 53. Kxb6 {[%clk 0:00:45.8]} 53... Ra2
{[%clk 0:00:04.9]} 54. Kb5 {[%clk 0:00:46.3]} 54... a4 {[%clk 0:00:05.4]} 55.
Ka5 {[%clk 0:00:47.2]} 55... a3 {[%clk 0:00:05.6]} 56. Kb4 {[%clk 0:00:48.1]}
56... Ra1 {[%clk 0:00:05.8]} 57. Kb3 {[%clk 0:00:49]} 57... a2 {[%clk
0:00:06.2]} 58. Kb2 {[%clk 0:00:49.2]} 58... Rh1 {[%clk 0:00:05.5]} 59. Kxa2
{[%clk 0:00:50.1]} 59... Rxh5 {[%clk 0:00:06.2]} 60. Kb3 {[%clk 0:00:51]} 60...
Rg5 {[%clk 0:00:06.9]} 61. Kc4 {[%clk 0:00:51.9]} 61... h5 {[%clk 0:00:07.5]}
62. Kd4 {[%clk 0:00:52.8]} 62... h4 {[%clk 0:00:08.1]} 63. Ke4 {[%clk
0:00:53.6]} 63... h3 {[%clk 0:00:08.2]} 64. Kf4 {[%clk 0:00:54.5]} 64... Rg6
{[%clk 0:00:08.4]} 65. Kf3 {[%clk 0:00:54.8]} 65... h2 {[%clk 0:00:09]} 66. Kf2
{[%clk 0:00:55.7]} 66... h1=Q {[%clk 0:00:09.5]} 67. Ke3 {[%clk 0:00:56.6]}
67... Qf1 {[%clk 0:00:09.5]} 68. Ke4 {[%clk 0:00:56.7]} 68... Rg2 {[%clk
0:00:09.5]} 69. Ke5 {[%clk 0:00:57.2]} 69... Re2+ {[%clk 0:00:09.5]} 70. Kd4
{[%clk 0:00:57.7]} 70... Qd1+ {[%clk 0:00:09.6]} 71. Kc5 {[%clk 0:00:58.6]}
71... Rc2+ {[%clk 0:00:09.6]} 72. Kb5 {[%clk 0:00:59.5]} 72... Qb1+ {[%clk
0:00:09.8]} 73. Ka5 {[%clk 0:00:56.4]} 73... Ra2# {[%clk 0:00:10.7]} 0-1